Workbook

Sheet Пример АВС (hidden)
B1: Продажи | C1: A | D1: B | E1: C | G1: Категория | H1: A | I1: B | J1: C | K1: Занятость ниши | N1: Вывод | O1: Рекомендация
A2: 1 | B2: 61599.46 | C2: =IF(F2<0.5*B$102,1,0) -> 1 | D2: =IF(AND(F2<(0.75*B$102),F2>0.5*B$102)=FALSE,0,1) -> 0 | E2: =IF(F2>(0.75*B$102),1,0) -> 0 | F2: =B2 -> 61599.46 | G2: Numeric | H2: =COUNTIF(C2:C101,1)/100 -> 0.26 | I2: =COUNTIF(D2:D101,1)/100 -> 0.27 | J2: =COUNTIF(E2:E101,1)/100 -> 0.47 | K2: =1-(SUM(H2:I2)/SUM(H2:J2))/SUM(H3:I3) -> 0.2917549222 | M2: 90-100% | N2: Ниша занята полностью | O2: Не заходить!
A3: 2 | B3: 58717.08 | C3: 1 | D3: 0 | E3: 0 | F3: =B3+F2 -> 120316.54 | G3: Weight | H3: =C102/SUM($C102:$E102) -> 0.4948534959 | I3: =D102/SUM($C102:$E102) -> 0.253475037 | J3: =E102/SUM($C102:$E102) -> 0.2516714671 | M3: 75-90% | N3: Ниша занята | O3: Заходить опасно!
A4: 3 | B4: 53726.4 | C4: 1 | D4: 0 | E4: 0 | F4: 174042.94 | G4: Коефициент разрыва | H4: =H3/H2 -> 1.903282676 | I4: =I3/I2 -> 0.9387964333 | J4: =J3/J2 -> 0.5354712067 | M4: 60-75% | N4: Ниша почти занята | O4: Заходить сильно рискованно!
A5: 4 | B5: 43348.89 | C5: 1 | D5: 0 | E5: 0 | F5: 217391.83 | M5: 50-60% | N5: Ниша частично занята | O5: Заходить рискованно
A6: 5 | B6: 37432.59 | C6: 1 | D6: 0 | E6: 0 | F6: 254824.42 | G6: Категория | H6: A | I6: B | J6: C | K6: Занятость ниши | M6: 25-50% | N6: Ниша частично свободна | O6: Заходить можно
A7: 6 | B7: 34145.65 | C7: 1 | D7: 0 | E7: 0 | F7: 288970.07 | G7: Numeric | H7: =H8 -> 0.4932436835 | I7: =I8 -> 0.2562807744 | J7: =1-SUM(H7:I7) -> 0.2504755421 | K7: =1-(SUM(H7:I7)/SUM(H7:J7))/SUM(H8:I8) -> 0 | M7: 10-25% | N7: Ниша свободна | O7: Заходить рекомендуется
A8: 7 | B8: 30194.1 | C8: 1 | D8: 0 | E8: 0 | F8: 319164.17 | G8: Weight | H8: 0.4932436835 | I8: 0.2562807744 | J8: 0.2504755421 | M8: 0-10% | N8: Ниша полностью свободна | O8: Заходить нужно!
A9: 8 | B9: 28045 | C9: 1 | D9: 0 | E9: 0 | F9: 347209.17 | G9: Коефициент разрыва | H9: =H8/H7 -> 1 | I9: =I8/I7 -> 1 | J9: =J8/J7 -> 1
A10: 9 | B10: 27403.35 | C10: 1 | D10: 0 | E10: 0 | F10: 374612.52
A11: 10 | B11: 26241.25 | C11: 1 | D11: 0 | E11: 0 | F11: 400853.77
A12: 11 | B12: 26026.98 | C12: 1 | D12: 0 | E12: 0 | F12: 426880.75
A13: 12 | B13: 25830.09 | C13: 1 | D13: 0 | E13: 0 | F13: 452710.84
A14: 13 | B14: 25204.36 | C14: 1 | D14: 0 | E14: 0 | F14: 477915.2
A15: 14 | B15: 24255.77 | C15: 1 | D15: 0 | E15: 0 | F15: 502170.97
A16: 15 | B16: 24233.94 | C16: 1 | D16: 0 | E16: 0 | F16: 526404.91
A17: 16 | B17: 22715.91 | C17: 1 | D17: 0 | E17: 0 | F17: 549120.82
A18: 17 | B18: 22316.82 | C18: 1 | D18: 0 | E18: 0 | F18: 571437.64
A19: 18 | B19: 22162.61 | C19: 1 | D19: 0 | E19: 0 | F19: 593600.25
A20: 19 | B20: 22155.9 | C20: 1 | D20: 0 | E20: 0 | F20: 615756.15
A21: 20 | B21: 21833.76 | C21: 1 | D21: 0 | E21: 0 | F21: 637589.91
A22: 21 | B22: 21135.29 | C22: 1 | D22: 0 | E22: 0 | F22: 658725.2
A23: 22 | B23: 20746.16 | C23: 1 | D23: 0 | E23: 0 | F23: 679471.36
A24: 23 | B24: 20328.7 | C24: 1 | D24: 0 | E24: 0 | F24: 699800.06
A25: 24 | B25: 20206.52 | C25: 1 | D25: 0 | E25: 0 | F25: 720006.58
A26: 25 | B26: 19823.39 | C26: 1 | D26: 0 | E26: 0 | F26: 739829.97
A27: 26 | B27: 18121.23 | C27: 1 | D27: 0 | E27: 0 | F27: 757951.2
A28: 27 | B28: 17937.24 | C28: 0 | D28: 1 | E28: 0 | F28: 775888.44
A29: 28 | B29: 17635.59 | C29: 0 | D29: 1 | E29: 0 | F29: 793524.03
A30: 29 | B30: 17521.74 | C30: 0 | D30: 1 | E30: 0 | F30: 811045.77
A31: 30 | B31: 16941.05 | C31: 0 | D31: 1 | E31: 0 | F31: 827986.82
A32: 31 | B32: 16354.09 | C32: 0 | D32: 1 | E32: 0 | F32: 844340.91
A33: 32 | B33: 16186.43 | C33: 0 | D33: 1 | E33: 0 | F33: 860527.34
A34: 33 | B34: 16056.39 | C34: =IF(F34<0.5*B$102,1,0) -> 0 | D34: =IF(AND(F34<(0.75*B$102),F34>0.5*B$102)=FALSE,0,1) -> 1 | E34: =IF(F34>(0.75*B$102),1,0) -> 0 | F34: 876583.73
A35: 34 | B35: 16046.79 | C35: 0 | D35: 1 | E35: 0 | F35: =B35+F34 -> 892630.52
A36: 35 | B36: 15190.5 | C36: 0 | D36: 1 | E36: 0 | F36: 907821.02
A37: 36 | B37: 14975.01 | C37: 0 | D37: 1 | E37: 0 | F37: 922796.03
A38: 37 | B38: 14873.55 | C38: 0 | D38: 1 | E38: 0 | F38: 937669.58
A39: 38 | B39: 14760 | C39: 0 | D39: 1 | E39: 0 | F39: 952429.58
A40: 39 | B40: 14745.45 | C40: 0 | D40: 1 | E40: 0 | F40: 967175.03
A41: 40 | B41: 14647.56 | C41: 0 | D41: 1 | E41: 0 | F41: 981822.59
A42: 41 | B42: 13889.55 | C42: 0 | D42: 1 | E42: 0 | F42: 995712.14
A43: 42 | B43: 13850.76 | C43: 0 | D43: 1 | E43: 0 | F43: 1009562.9
A44: 43 | B44: 13820.16 | C44: 0 | D44: 1 | E44: 0 | F44: 1023383.06
A45: 44 | B45: 13790 | C45: 0 | D45: 1 | E45: 0 | F45: 1037173.06
A46: 45 | B46: 13698.29 | C46: 0 | D46: 1 | E46: 0 | F46: 1050871.35
A47: 46 | B47: 13559.52 | C47: 0 | D47: 1 | E47: 0 | F47: 1064430.87
A48: 47 | B48: 12993.83 | C48: 0 | D48: 1 | E48: 0 | F48: 1077424.7
A49: 48 | B49: 12736.36 | C49: 0 | D49: 1 | E49: 0 | F49: 1090161.06
A50: 49 | B50: 12144 | C50: 0 | D50: 1 | E50: 0 | F50: 1102305.06
A51: 50 | B51: 11425.7 | C51: 0 | D51: 1 | E51: 0 | F51: 1113730.76
A52: 51 | B52: 10867.5 | C52: 0 | D52: 1 | E52: 0 | F52: 1124598.26
A53: 52 | B53: 10811.95 | C53: 0 | D53: 1 | E53: 0 | F53: 1135410.21
A54: 53 | B54: 10780.56 | C54: 0 | D54: 1 | E54: 0 | F54: 1146190.77
A55: 54 | B55: 10454.77 | C55: 0 | D55: 0 | E55: 1 | F55: 1156645.54
A56: 55 | B56: 10357.41 | C56: 0 | D56: 0 | E56: 1 | F56: 1167002.95
A57: 56 | B57: 10137.66 | C57: 0 | D57: 0 | E57: 1 | F57: 1177140.61
A58: 57 | B58: 10089.9 | C58: 0 | D58: 0 | E58: 1 | F58: 1187230.51
A59: 58 | B59: 10075.2 | C59: 0 | D59: 0 | E59: 1 | F59: 1197305.71
A60: 59 | B60: 10028.44 | C60: 0 | D60: 0 | E60: 1 | F60: 1207334.15
A61: 60 | B61: 9807.45 | C61: 0 | D61: 0 | E61: 1 | F61: 1217141.6
A62: 61 | B62: 9803.08 | C62: 0 | D62: 0 | E62: 1 | F62: 1226944.68
A63: 62 | B63: 9718.37 | C63: 0 | D63: 0 | E63: 1 | F63: 1236663.05
A64: 63 | B64: 9488.3 | C64: 0 | D64: 0 | E64: 1 | F64: 1246151.35
A65: 64 | B65: 9327.51 | C65: 0 | D65: 0 | E65: 1 | F65: 1255478.86
A66: 65 | B66: 9323.78 | C66: =IF(F66<0.5*B$102,1,0) -> 0 | D66: =IF(AND(F66<(0.75*B$102),F66>0.5*B$102)=FALSE,0,1) -> 0 | E66: =IF(F66>(0.75*B$102),1,0) -> 1 | F66: 1264802.64
A67: 66 | B67: 9274.86 | C67: 0 | D67: 0 | E67: 1 | F67: =B67+F66 -> 1274077.5
A68: 67 | B68: 8976.09 | C68: 0 | D68: 0 | E68: 1 | F68: 1283053.59
A69: 68 | B69: 8955.52 | C69: 0 | D69: 0 | E69: 1 | F69: 1292009.11
A70: 69 | B70: 8814.6 | C70: 0 | D70: 0 | E70: 1 | F70: 1300823.71
A71: 70 | B71: 8814.6 | C71: 0 | D71: 0 | E71: 1 | F71: 1309638.31
A72: 71 | B72: 8746.5 | C72: 0 | D72: 0 | E72: 1 | F72: 1318384.81
A73: 72 | B73: 8735.4 | C73: 0 | D73: 0 | E73: 1 | F73: 1327120.21
A74: 73 | B74: 8564.49 | C74: 0 | D74: 0 | E74: 1 | F74: 1335684.7
A75: 74 | B75: 8527.26 | C75: 0 | D75: 0 | E75: 1 | F75: 1344211.96
A76: 75 | B76: 8490.69 | C76: 0 | D76: 0 | E76: 1 | F76: 1352702.65
A77: 76 | B77: 8300.61 | C77: 0 | D77: 0 | E77: 1 | F77: 1361003.26
A78: 77 | B78: 8209.68 | C78: 0 | D78: 0 | E78: 1 | F78: 1369212.94
A79: 78 | B79: 8149.47 | C79: 0 | D79: 0 | E79: 1 | F79: 1377362.41
A80: 79 | B80: 8049.63 | C80: 0 | D80: 0 | E80: 1 | F80: 1385412.04
A81: 80 | B81: 8000 | C81: 0 | D81: 0 | E81: 1 | F81: 1393412.04
A82: 81 | B82: 7893.6 | C82: 0 | D82: 0 | E82: 1 | F82: 1401305.64
A83: 82 | B83: 7704.43 | C83: 0 | D83: 0 | E83: 1 | F83: 1409010.07
A84: 83 | B84: 7640.85 | C84: 0 | D84: 0 | E84: 1 | F84: 1416650.92
A85: 84 | B85: 7633.98 | C85: 0 | D85: 0 | E85: 1 | F85: 1424284.9
A86: 85 | B86: 7562.43 | C86: 0 | D86: 0 | E86: 1 | F86: 1431847.33
A87: 86 | B87: 7412 | C87: 0 | D87: 0 | E87: 1 | F87: 1439259.33
A88: 87 | B88: 7364.93 | C88: 0 | D88: 0 | E88: 1 | F88: 1446624.26
A89: 88 | B89: 7226.1 | C89: 0 | D89: 0 | E89: 1 | F89: 1453850.36
A90: 89 | B90: 7198 | C90: 0 | D90: 0 | E90: 1 | F90: 1461048.36
A91: 90 | B91: 7146.75 | C91: 0 | D91: 0 | E91: 1 | F91: 1468195.11
A92: 91 | B92: 6684.48 | C92: 0 | D92: 0 | E92: 1 | F92: 1474879.59
A93: 92 | B93: 6566.35 | C93: 0 | D93: 0 | E93: 1 | F93: 1481445.94
A94: 93 | B94: 6437.2 | C94: 0 | D94: 0 | E94: 1 | F94: 1487883.14
A95: 94 | B95: 6416.79 | C95: 0 | D95: 0 | E95: 1 | F95: 1494299.93
A96: 95 | B96: 6259.98 | C96: 0 | D96: 0 | E96: 1 | F96: 1500559.91
A97: 96 | B97: 6244.35 | C97: 0 | D97: 0 | E97: 1 | F97: 1506804.26
A98: 97 | B98: 6241.77 | C98: =IF(F98<0.5*B$102,1,0) -> 0 | D98: 0 | E98: =IF(F98>(0.75*B$102),1,0) -> 1 | F98: 1513046.03
A99: 98 | B99: 6223.17 | C99: =IF(F99<0.5*B$102,1,0) -> 0 | D99: 0 | E99: =IF(F99>(0.75*B$102),1,0) -> 1 | F99: 1519269.2
A100: 99 | B100: 6211.3 | C100: =IF(F100<0.5*B$102,1,0) -> 0 | D100: 0 | E100: =IF(F100>(0.75*B$102),1,0) -> 1 | F100: 1525480.5
A101: 100 | B101: 6187.37 | C101: =IF(F101<0.5*B$102,1,0) -> 0 | D101: 0 | E101: =IF(F101>(0.75*B$102),1,0) -> 1 | F101: 1531667.87
B102: =SUM(B2:B101) -> 1531667.87 | C102: =SUMIFS(B2:B101,C2:C101,1) -> 757951.2 | D102: =SUMIFS(B2:B101,D2:D101,1) -> 388239.57 | E102: =SUMIFS(B2:B101,E2:E101,1) -> 385477.1

Sheet Temp-Z (hidden)
A1: Показатели ниши | B1: =#REF! -> 
A2: Кол-во SKU с RPR>100 на страницах категории А | B2: =SUM(IF(COUNTIF(#REF!,"A")=0,SUMIFS(#REF!,#REF!,"A+B"),SUMIFS(#REF!,#REF!,"A")),IF(COUNTIF(#REF!,"A")=0,SUMIFS(#REF!,#REF!,"A+B"),SUMIFS(#REF!,#REF!,"A"))) -> 
A3: Кол-во SKU с BSR < "порога" на страницах категории А | B3: =SUM(IF(VLOOKUP(#REF!,#REF!,2,0)="ND","Н/Д по BSR",IF(COUNTIF(#REF!,"A")=0,SUMIFS(#REF!,#REF!,"A+B"),SUMIFS(#REF!,#REF!,"A"))),IF(VLOOKUP(#REF!,#REF!,2,0)="ND","Н/Д по BSR",IF(COUNTIF(#REF!,"A")=0,SUMIFS(#REF!,#REF!,"A+B"),SUMIFS(#REF!,#REF!,"A")))) -> 
A4: Кол-во поисковых запросов / в мес. | B4: =IF('Temp-Z'!W4="Вы не указали кол-во поисковых запросов!!!","Нет данных",'Temp-Z'!W4) -> 0
A5: Объём продаж ниши (TOP 100) / в мес. | B5: =ROUND(SUMIFS(#REF!,#REF!,"<101"),0) -> 
A6: Кол-во продаж ниши (TOP 100) / в мес. | B6: =SUMIFS(#REF!,#REF!,"<101") -> 
A7: Плотность ниши | B7: =#REF! -> 
A8: Перспектива развития ниши для FBA | B8: =#REF! -> 
A9: Средняя цена товаров категорий А+B | B9: =ROUND(AVERAGE('Temp-Z'!W11:X11),2) -> 24.74
A10: Средний объём продаж товаров категорий А+B / в мес. | B10: =ROUND(SUM('Temp-Z'!W7:X7)/SUM('Temp-Z'!W9:X9),0) -> 17716
A11: Средний кол-во продаж товаров категорий А+B / в мес. | B11: =SUM('Temp-Z'!W8:X8)/SUM('Temp-Z'!W9:X9) -> 1011.521739
A12: Средний вес товаров категорий А+B | B12: =ROUND((AVERAGEIFS(#REF!,#REF!,"A",#REF!,">0")+AVERAGEIFS(#REF!,#REF!,"B",#REF!,">0"))/2,1) -> 
A13: Сила брендов (по обороту) | B13: =#REF! -> 
A14: Сила брендов (по продажам) | B14: =#REF! -> 
A15: Кол-во страниц категории А | B15: =COUNTIF(#REF!,"A") -> 
A16: Кол-во страниц категории B | B16: =COUNTIF(#REF!,"B") -> 

Sheet Keywords match types (hidden)
A1: Match type | B1: Example keyword | C1: Ads can show on search terms that include | D1: Matches to these customer search terms | E1: Doesn't match these customer search terms
A2: Broad match | B2: boys shoes | C2: related searches, and relevant variations | D2: boys shoes size 10, waterproof boys shoes | E2: Boys pants, mens shoes
A3: Phrase match | B3: boys shoes | C3: the phrase and close variations of the phrase | D3: boys shoes, boys shoes 10 | E3: shoes for boys, shoes boys, boys red shoes
A4: Exact match | B4: boys shoes | C4: the exact phrase and close variations of the exact phrase | D4: boys shoes | E4: boys shoes 10
A5: Tips:
A6: Ключевые слова не чувствительны к регистру, поэтому они будут соответствовать прописным или строчным буквам в поисковых терминах.
A7: Stemmed words, abbreviations, plurals, common misspellings, and synonyms are not supported. | B7: Строковые слова, аббревиатуры, множественные числа, общие орфографические ошибки и синонимы не поддерживаются.
A9: Match type | B9: Example keyword | C9: Ads don't show on search queries that contain | D9: Excludes shopper search queries like these | E9: Doesn't exclude shopper search queries like these
A10: Negative phrase | B10: boys shoes | C10: the complete phrase or close variations | D10: Boys shoes, boys shoes 10 | E10: shoes for boys, boys red shoes, shoes boys,
A11: Negative exact | B11: boys shoes | C11: the exact phrase or close variations | D11: boys shoes, boy's shoe | E11: boys shoes 10
A12: Match type | B12: Word limit | C12: Character limit
A13: Negative phrase | B13: 4 words | C13: 80 characters
A14: Negative exact | B14: 10 words | C14: 80 characters

Sheet Keywords from title (hidden)
A2: WALNUT | B2: 442 | D2: Sun | E2: 1
A3: oz | B3: 130 | D3: AmishTastes | E3: 1
A4: Pack | B4: 116 | D4: American | E4: 2
A5: Ounce | B5: 90 | D5: Amoretti | E5: 3
A6: Nut | B6: 78 | D6: Amish | E6: 2
A7: LB | B7: 68 | D7: Assortit | E7: 2
A8: Raw | B8: 67 | D8: Answer | E8: 1
A9: Organic | B9: 66 | D9: Butlers | E9: 3
A10: Black | B10: 58 | D10: Bakery | E10: 4
A11: Natural | B11: 44 | D11: AppleTree | E11: 1
A12: Halve | B12: 42 | D12: AseusLtd | E12: 1
A13: Piece | B13: 39 | D13: Bar | E13: 5
A14: BAR | B14: 37 | D14: Austera | E14: 1
A15: Almond | B15: 35 | D15: Azar | E15: 2
A16: CALIFORNIA | B16: 35 | D16: Awesome | E16: 1
A17: Free | B17: 31 | D17: Bake | E17: 2
A18: Bag | B18: 31 | D18: Back | E18: 1
A19: Pound | B19: 31 | D19: Bakers | E19: 1
A20: Chocolate | B20: 30 | D20: Buggy | E20: 2
A21: Oatmeal | B21: 27 | D21: BakeryAnywhere | E21: 1
A22: Butter | B22: 24 | D22: Bayside | E22: 4
A23: Shelled | B23: 24 | D23: Baking | E23: 1
A24: g | B24: 23 | D24: Baklava | E24: 1
A25: Raisin | B25: 23 | D25: Barry | E25: 1
A26: count | B26: 22 | D26: Brothers | E26: 5
A27: Gluten | B27: 21 | D27: Bars | E27: 1
A28: Cashew | B28: 20 | D28: Barts | E28: 1
A29: Maple | B29: 20 | D29: Bazzini | E29: 1
A30: Shell | B30: 19 | D30: Candy | E30: 7
A31: box | B31: 19 | D31: Company | E31: 4
A32: Mix | B32: 19 | D32: Beanilla | E32: 1
A33: Pecan | B33: 19 | D33: Belly | E33: 1
A34: Snack | B34: 19 | D34: Bernices | E34: 1
A35: Tea | B35: 18 | D35: Best | E35: 1
A36: Date | B36: 17 | D36: BetterFoods | E36: 1
A37: Farm | B37: 17 | D37: Biscotti | E37: 1
A38: Diamond | B38: 16 | D38: Blanca | E38: 1
A39: Food | B39: 16 | D39: Blue | E39: 1
A40: GMO | B40: 16 | D40: Botanicals | E40: 1
A41: Non | B41: 16 | D41: Braga | E41: 1
A42: LBS | B42: 15 | D42: Cakes | E42: 5
A43: Roasted | B43: 15 | D43: Butter | E43: 2
A44: Apple | B44: 15 | D44: Brand | E44: 1
A45: Healthy | B45: 15 | D45: Bulk | E45: 1
A46: Fresh | B46: 14 | D46: California | E46: 3
A47: Cookie | B47: 14 | D47: Buy | E47: 1
A48: Premium | B48: 13 | D48: Clif | E48: 5
A49: All | B49: 13 | D49: Butters | E49: 2
A50: Cake | B50: 13 | D50: CandyMax | E50: 2
A51: Extract | B51: 13 | D51: Carleys | E51: 1
A52: Fudge | B52: 12 | D52: Fresh | E52: 7
A53: Banana | B53: 12 | D53: Candies | E53: 3
A54: Bulk | B54: 12 | D54: Duncan | E54: 3
A55: Oat | B55: 12 | D55: CHIYGBC | E55: 2
A56: Brownie | B56: 11 | D56: Carli | E56: 1
A57: Cereal | B57: 11 | D57: Caviar | E57: 1
A58: Certified | B58: 11 | D58: Cereal | E58: 1
A59: Chopped | B59: 11 | D59: Cheese | E59: 1
A60: dry | B60: 11 | D60: Chef | E60: 1
A61: Instant | B61: 11 | D61: Chercher | E61: 1
A62: Kosher | B62: 11 | D62: China | E62: 1
A63: Light | B63: 10 | D63: Chocolate | E63: 2
A64: Quaker | B64: 10 | D64: Choice | E64: 2
A65: Raspberry | B65: 10 | D65: Cloud | E65: 2
A66: Brazil | B66: 10 | D66: Christophers | E66: 1
A67: Unsalted | B67: 10 | D67: CoffeeCakescom | E67: 1
A68: Calorie | B68: 9 | D68: Fisher | E68: 5
A69: Red | B69: 9 | D69: Eats | E69: 4
A70: Dressing | B70: 9 | D70: Co | E70: 2
A71: From | B71: 9 | D71: Cravings | E71: 2
A72: Jumbo | B72: 9 | D72: Community | E72: 1
A73: No | B73: 9 | D73: Cookie | E73: 1
A74: Vinaigrette | B74: 9 | D74: Cookies | E74: 1
A75: Signature | B75: 8 | D75: Dried | E75: 8
A76: Vegan | B76: 8 | D76: Emerald | E76: 6
A77: Kirkland | B77: 8 | D77: Crazy | E77: 2
A78: Milk | B78: 8 | D78: Cream | E78: 2
A79: Powder | B79: 8 | D79: DAMTUH | E79: 2
A80: whole | B80: 8 | D80: elizabeth | E80: 2
A81: Creek | B81: 8 | D81: Cooking | E81: 1
A82: Crunchy | B82: 8 | D82: Corona | E82: 1
A83: Dried | B83: 8 | D83: COU | E83: 1
A84: Flavor | B84: 8 | D84: Country | E84: 1
A85: Grown | B85: 8 | D85: Custom | E85: 1
A86: SYRUP | B86: 8 | D86: Dance | E86: 1
A87: House | B87: 7 | D87: Farms | E87: 10
A88: Mixed | B88: 7 | D88: Farm | E88: 8
A89: Salted | B89: 7 | D89: Food | E89: 6
A90: Omega | B90: 7 | D90: Fee | E90: 4
A91: Nuts | B91: 7 | D91: Fields | E91: 3
A92: Pieces | B92: 7 | D92: Elmhurst | E92: 2
A93: Quality | B93: 7 | D93: Factor | E93: 2
A94: Chip | B94: 7 | D94: Debbie | E94: 1
A95: Cinnamon | B95: 7 | D95: DeLallo | E95: 1
A96: fl | B96: 7 | D96: Delight | E96: 1
A97: Glazed | B97: 7 | D97: Delish | E97: 1
A98: Go | B98: 7 | D98: DeMedici | E98: 1
A99: Gourmet | B99: 7 | D99: Doctors | E99: 1
A100: Hull | B100: 7 | D100: Dr | E100: 1
A101: Jar | B101: 7 | D101: Edmond | E101: 1
A102: Packs | B102: 7 | D102: Elan | E102: 1
A103: per | B103: 7 | D103: EmeraldГ‚В® | E103: 1
A104: Sincerely | B104: 7 | D104: England | E104: 1
A105: Super | B105: 7 | D105: Epic | E105: 1
A106: вЂ“ | B106: 7 | D106: Erin | E106: 1
A107: Granola | B107: 6 | D107: Walnut | E107: 10
A108: Pickled | B108: 6 | D108: Creek | E108: 8
A109: Fruit | B109: 6 | D109: Fruit | E109: 8
A110: Trail | B110: 6 | D110: Kirkland | E110: 8
A111: Tasty | B111: 6 | D111: Gourmet | E111: 7
A112: Pamela | B112: 6 | D112: Fruits | E112: 6
A113: Two | B113: 6 | D113: Harvest | E113: 6
A114: Opie | B114: 6 | D114: Got | E114: 5
A115: Joe | B115: 6 | D115: lbs | E115: 4
A116: Large | B116: 6 | D116: From | E116: 3
A117: Trader | B117: 6 | D117: Fudge | E117: 3
A118: Family | B118: 6 | D118: Fallot | E118: 2
A119: Fig | B119: 6 | D119: Futters | E119: 2
A120: Cluster | B120: 6 | D120: Estates | E120: 1
A121: Cup | B121: 6 | D121: European | E121: 1
A122: Daily | B122: 6 | D122: Evo | E122: 1
A123: Energy | B123: 6 | D123: Extracts | E123: 1
A124: English | B124: 6 | D124: FastachiВ® | E124: 1
A125: Green | B125: 6 | D125: First | E125: 1
A126: Nature | B126: 6 | D126: Flavors | E126: 1
A127: Orchard | B127: 6 | D127: Formerly | E127: 1
A128: Presto | B128: 6 | D128: Formula | E128: 1
A129: PROTEIN | B129: 6 | D129: Foxs | E129: 1
A130: Salad | B130: 6 | D130: Fratelli | E130: 1
A131: Source | B131: 6 | D131: Fredlyn | E131: 1
A132: Sweet | B132: 6 | D132: Fu | E132: 1
A133: We | B133: 6 | D133: Fusion | E133: 1
A134: Got | B134: 5 | D134: Sincerely | E134: 7
A135: Sahale | B135: 5 | D135: House | E135: 6
A136: FISHER | B136: 5 | D136: Hammons | E136: 5
A137: Pistachio | B137: 5 | D137: Kens | E137: 5
A138: ~ | B138: 5 | D138: Georgian | E138: 3
A139: Boxe | B139: 5 | D139: GoMacro | E139: 3
A140: CLIF | B140: 5 | D140: Healing | E140: 3
A141: Scott | B141: 5 | D141: Hines | E141: 3
A142: Bottle | B142: 5 | D142: Ghirardelli | E142: 2
A143: Breakfast | B143: 5 | D143: Go | E143: 2
A144: Chef | B144: 5 | D144: Gorilla | E144: 2
A145: Eat | B145: 5 | D145: Grown | E145: 2
A146: Ken | B146: 5 | D146: HawaiiPharm | E146: 2
A147: Sale | B147: 5 | D147: Healthy | E147: 2
A148: Seed | B148: 5 | D148: Hill | E148: 2
A149: Artisana | B149: 5 | D149: Gethsemani | E149: 1
A150: Brand | B150: 5 | D150: GIP | E150: 1
A151: Brother | B151: 5 | D151: Gnu | E151: 1
A152: Case | B152: 5 | D152: GOLDING | E152: 1
A153: Cherrie | B153: 5 | D153: Good | E153: 1
A154: Co | B154: 5 | D154: Grandmas | E154: 1
A155: Grain | B155: 5 | D155: Granola | E155: 1
A156: Great | B156: 5 | D156: Graze | E156: 1
A157: Hammon | B157: 5 | D157: Green | E157: 1
A158: Hazelnut | B158: 5 | D158: Guys | E158: 1
A159: LLC | B159: 5 | D159: Halls | E159: 1
A160: Macadamia | B160: 5 | D160: Hammonds | E160: 1
A161: Mustard | B161: 5 | D161: Happy | E161: 1
A162: Real | B162: 5 | D162: Heartbar | E162: 1
A163: Spice | B163: 5 | D163: heidicom | E163: 1
A164: Sprouted | B164: 5 | D164: Hemp | E164: 1
A165: Sugar | B165: 5 | D165: Henna | E165: 1
A166: Superfood | B166: 5 | D166: Herb | E166: 1
A167: Honey | B167: 4 | D167: Quaker | E167: 8
A168: Bars | B168: 4 | D168: Joes | E168: 6
A169: each | B169: 4 | D169: Nut | E169: 6
A170: Gift | B170: 4 | D170: Natures | E170: 5
A171: Live | B171: 4 | D171: Linwoods | E171: 4
A172: Q | B172: 4 | D172: Live | E172: 4
A173: Sarah | B173: 4 | D173: NutsВ® | E173: 4
A174: Baking | B174: 4 | D174: Natural | E174: 3
A175: Bakery | B175: 4 | D175: Italia | E175: 2
A176: Covered | B176: 4 | D176: Keep | E176: 2
A177: Flour | B177: 4 | D177: Kii | E177: 2
A178: Harvest | B178: 4 | D178: lara | E178: 2
A179: Linwood | B179: 4 | D179: Love | E179: 2
A180: Topping | B180: 4 | D180: ltd | E180: 2
A181: Umpqua | B181: 4 | D181: Lucini | E181: 2
A182: USDA | B182: 4 | D182: Main | E182: 2
A183: Whenever | B183: 4 | D183: Mark | E183: 2
A184: Amish | B184: 4 | D184: Herbals | E184: 1
A185: Anna | B185: 4 | D185: Herbs | E185: 1
A186: Artificial | B186: 4 | D186: Hider | E186: 1
A187: bags | B187: 4 | D187: How | E187: 1
A188: Blend | B188: 4 | D188: Hudson | E188: 1
A189: Candied | B189: 4 | D189: Inc | E189: 1
A190: Chinese | B190: 4 | D190: Is | E190: 1
A191: Chunk | B191: 4 | D191: It | E191: 1
A192: Coconut | B192: 4 | D192: Its | E192: 1
A193: Cranberry | B193: 4 | D193: Jalpur | E193: 1
A194: Crisp | B194: 4 | D194: Jar | E194: 1
A195: Deliciou | B195: 4 | D195: JoJeВґ | E195: 1
A196: Emerald | B196: 4 | D196: JOJOs | E196: 1
A197: Fee | B197: 4 | D197: JollyCandy | E197: 1
A198: Field | B198: 4 | D198: JSJM | E198: 1
A199: FLAVORING | B199: 4 | D199: Juice | E199: 1
A200: Flaxseed | B200: 4 | D200: Khodkar | E200: 1
A201: Ground | B201: 4 | D201: KIND | E201: 1
... 603 more rows

Sheet csv
